bitfinex-derivatives/quotes_SOLF0:USTF0_20250207
["timestamp","ask_amount","ask_price","bid_price","bid_amount"]
[1738886619018,38.52968793,190.24,190.22,2.149e-05]
[1738886619415,0.03620921,190.26,190.22,2.149e-05]
[1738886620019,5.2565,190.23,190.22,2.149e-05]
[1738886620615,38.56589714,190.26,190.22,2.149e-05]
[1738886620616,0.03620921,190.26,190.22,2.149e-05]
[1738886621121,5.2562,190.25,190.22,2.149e-05]
[1738886621423,0.03620921,190.26,190.22,2.149e-05]
[1738886621720,5.2565,190.23,190.22,2.149e-05]
[1738886623125,0.03620921,190.26,190.22,2.149e-05]
[1738886623614,2.9831,190.37,190.22,38.52970942]
[1738886623923,38.52968793,190.4,190.26,38.52968793]
[1738886624221,38.52968793,190.44,190.26,38.52968793]
[1738886624424,38.52968793,190.35,190.2,38.52968793]
[1738886624720,38.52968793,190.38,190.3,0.03740729]
[1738886624919,0.03812879,190.34,190.3,0.03740729]
[1738886625119,38.52968793,190.38,190.29,5.2548]
[1738886625314,38.52968793,190.38,190.3,0.03574886]
[1738886625315,0.03933338,190.34,190.3,0.03574886]
[1738886626322,5.2543,190.31,190.3,0.03574886]
[1738886627019,5.254,190.33,190.3,0.03574886]
[1738886627216,0.03933338,190.34,190.3,0.03574886]
[1738886627715,38.52968793,190.42,190.3,0.03574886]
[1738886628015,38.52968793,190.42,190.27,38.52968793]
[1738886628926,38.52968793,190.42,190.33,0.03798041]
[1738886628927,0.04029622,190.36,190.33,0.03798041]
[1738886629422,4.7,190.43,190.33,0.03798041]
[1738886629423,38.52968793,190.43,190.33,0.03798041]
[1738886629628,38.52968793,190.4,190.33,0.03798041]
[1738886629827,38.52968793,190.36,190.33,8.041e-05]
[1738886630121,38.52968793,190.36,190.21,2.0815]
[1738886630321,38.52968793,190.32,190.21,2.0815]
[1738886630921,38.52968793,190.36,190.21,2.0815]
[1738886631126,0.03609388,190.28,190.25,0.03364068]
[1738886631522,5.2557,190.26,190.25,0.03364068]
[1738886632328,5.2557,190.26,190.25,4.068e-05]
[1738886639137,5.2554,190.27,190.25,4.068e-05]
[1738886639834,5.2557,190.26,190.25,4.068e-05]
[1738886640036,0.03701236,190.28,190.25,4.068e-05]
[1738886640436,38.52968793,190.36,190.25,4.068e-05]
[1738886641035,5.2537,190.33,190.26,5.2556]
[1738886641232,5.2537,190.33,190.26,2.1287]
[1738886641636,0.03910491,190.31,190.28,0.03941833]
[1738886643037,5.2548,190.29,190.28,0.03941833]
[1738886643333,5.2548,190.29,190.28,1.833e-05]
[1738886644639,6.22111443,190.29,190.28,1.833e-05]
[1738886644839,6.22113173,190.29,190.28,1.833e-05]
[1738886645240,5.2548,190.29,190.28,1.833e-05]
[1738886645742,5.2546,190.3,190.28,1.833e-05]
[1738886645939,0.03910491,190.31,190.28,1.833e-05]
[1738886646333,5.2545,190.3,190.28,1.833e-05]
[1738886646535,0.03910491,190.31,190.28,1.833e-05]
[1738886648241,43.14968793,190.4,190.28,1.833e-05]
[1738886648741,5.253,190.36,190.22,38.52968793]
[1738886649045,2.9636,190.42,190.26,38.52968793]
[1738886649239,38.52968793,190.41,190.27,5.02725749]
[1738886649537,38.52968793,190.41,190.27,4.9915]
[1738886650540,0.03872852,190.36,190.32,0.03602609]
[1738886650737,2.9981,190.44,190.27,43.52118793]
[1738886650936,0.0359212,190.36,190.32,0.03736919]
[1738886651137,147.20968793,190.45,190.27,43.52118793]
[1738886651337,108.68,190.45,190.27,43.52118793]
[1738886651633,5.2527,190.37,190.3,5.2544]
[1738886652444,0.0394048,190.35,190.32,0.03502545]
[1738886653438,108.68,190.45,190.32,0.03502545]
[1738886653639,108.68,190.45,190.3,38.52968793]
[1738886653841,38.52968793,190.43,190.27,4.9915]
[1738886654641,0.03334778,190.37,190.33,0.03954396]
[1738886655246,38.52968793,190.36,190.26,1.17]
[1738886655441,38.52968793,190.33,190.26,1.17]
[1738886655640,5.2554,190.27,190.26,1.17]
[1738886657048,0.03915241,190.28,190.26,1.17]
[1738886659246,5.2557,190.26,190.25,0.03517983]
[1738886659853,5.2572,190.21,190.16,2.1443]
[1738886660957,5.2576,190.19,190.13,7.339]
[1738886661262,5.2576,190.19,190.17,0.03527326]
[1738886661564,0.03509605,190.2,190.17,0.03527326]
[1738886662460,38.52968793,190.33,190.17,38.56496119]
[1738886662660,4.58,190.35,190.21,38.52968793]
[1738886662857,5.2538,190.33,190.26,5.2556]
[1738886663163,21.56936054,190.36,190.24,38.52968793]
[1738886663462,60.09904847,190.36,190.28,0.03492129]
[1738886663659,0.03559925,190.32,190.28,0.03492129]
[1738886664154,21.56936054,190.36,190.28,38.56460922]
[1738886664357,18.27646054,190.36,190.28,38.56460922]
[1738886664960,18.27646054,190.36,190.35,5.2532]
[1738886665261,18.27646054,190.36,190.28,38.52968793]
[1738886665459,0.03819857,190.37,190.34,5.290575]
[1738886665656,0.03819857,190.37,190.34,5.2534]
[1738886665865,0.03819857,190.37,190.34,0.03844322]
[1738886666062,5.2532,190.35,190.34,0.03844322]
[1738886667368,0.03819857,190.37,190.34,0.03844322]
[1738886667570,0.03819857,190.37,190.35,5.2529]
[1738886667773,0.03819857,190.37,190.34,0.03844322]
[1738886668163,0.03819857,190.37,190.34,4.322e-05]
[1738886668568,5.2532,190.35,190.34,4.322e-05]
[1738886670563,43.78288793,190.35,190.34,4.322e-05]
[1738886674165,0.03819857,190.37,190.34,4.322e-05]
[1738886674372,5.29099857,190.37,190.34,4.322e-05]
[1738886675475,0.03819857,190.37,190.34,4.322e-05]
[1738886675869,57.51829478,190.47,190.36,38.52968793]
[1738886676068,57.51829478,190.47,190.43,5.2508]
[1738886676277,57.51829478,190.47,190.36,38.52968793]
[1738886677175,0.03689938,190.43,190.41,5.2515]
[1738886677376,57.51829478,190.47,190.4,0.0374507]
[1738886677775,5.2494,190.49,190.42,5.2512]
[1738886678476,0.03626604,190.47,190.4,0.0374507]
[1738886678676,0.03626604,190.47,190.36,38.52968793]
[1738886678877,0.03626604,190.47,190.42,0.03915196]
[1738886682574,0.03626604,190.47,190.42,2.03115196]
[1738886684175,0.03626604,190.47,190.42,0.03915196]
[1738886684379,5.28616604,190.47,190.42,0.03915196]
[1738886684974,0.03626604,190.47,190.42,0.03915196]
[1738886685881,0.03626604,190.47,190.44,5.2504]
[1738886686573,0.03626604,190.47,190.46,5.2501]
[1738886686772,0.03626604,190.47,190.42,0.03915196]
[1738886687782,0.03626604,190.47,190.44,5.2505]
[1738886687978,0.03626604,190.47,190.42,0.03915196]
[1738886688484,0.03626604,190.47,190.43,5.2508]
[1738886688676,0.03626604,190.47,190.42,0.03915196]
[1738886689181,41.42068793,190.57,190.42,0.03915196]
[1738886689383,2.891,190.57,190.44,38.52968793]
[1738886689588,38.52968793,190.55,190.41,6.4292]
[1738886690375,0.03476734,190.5,190.46,0.03372001]
[1738886690581,5.28396734,190.5,190.46,0.03372001]
[1738886691180,0.03476734,190.5,190.46,0.03372001]
[1738886692284,5.2499,190.47,190.46,0.03372001]
[1738886692487,38.52968793,190.49,190.37,195.9561]
[1738886692676,38.52968793,190.46,190.31,7.5112]
[1738886692879,41.55928793,190.5,190.31,7.5112]
[1738886693681,0.03816302,190.42,190.39,0.03869514]
[1738886694080,41.55928793,190.5,190.39,0.03869514]
[1738886694277,0.03875519,190.42,190.39,0.03869514]
[1738886694481,0.03912657,190.42,190.4,5.2518]
[1738886694683,3.2045,190.51,190.39,0.03869514]
[1738886694882,3.2045,190.51,190.38,38.52968793]
[1738886695078,3.2045,190.51,190.44,5.2506]
[1738886695889,0.03906301,190.49,190.46,0.0334192]
[1738886697881,0.03906301,190.49,190.46,5.2834192]
[1738886698085,57.51829478,190.67,190.46,0.0334192]
[1738886698287,4.2013,190.65,190.5,23.82066628]
[1738886698486,4.2013,190.65,190.51,2.9218]
[1738886698684,9.4464,190.65,190.51,2.9218]
[1738886698883,4.2013,190.65,190.51,2.9218]
[1738886699083,5.2457,190.62,190.55,5.2476]
[1738886699288,4.2013,190.65,190.51,2.9218]
[1738886699289,0.03638841,190.6,190.56,0.03715741]
[1738886701190,0.03638841,190.6,190.41,10.3383]
[1738886701386,38.66229847,190.62,190.44,38.66229847]
[1738886701587,4.5,190.63,190.48,38.66229847]
[1738886702089,5.246,190.62,190.48,38.66229847]
[1738886702389,0.03835654,190.57,190.54,0.03966199]
[1738886702588,0.03835654,190.57,190.55,5.2477]
[1738886702788,0.03835654,190.57,190.54,0.03966199]
[1738886704291,38.66229847,190.56,190.43,5.2507]
[1738886704490,38.66229847,190.56,190.42,4.0579]
[1738886704690,2.9502,190.58,190.42,4.0579]
[1738886705393,0.03527613,190.52,190.48,0.03651274]
[1738886705591,4.5,190.63,190.49,38.66229847]
[1738886705992,5.2458,190.62,190.55,5.2476]
[1738886706798,0.03477575,190.6,190.57,0.03752056]
[1738886708293,0.03477575,190.6,190.59,5.2466]
[1738886710184,5.2438,190.69,190.61,5.2459]
[1738886710688,5.2441,190.68,190.61,5.2459]
[1738886711399,0.03552281,190.66,190.63,0.03859946]
[1738886713695,0.03552281,190.66,190.65,5.2449]
[1738886714201,0.03552281,190.66,190.63,0.03859946]
[1738886715496,0.03552281,190.66,190.64,5.2452]
[1738886716098,0.03552281,190.66,190.65,5.2449]
[1738886719595,0.03552281,190.66,190.63,5.28399946]
[1738886720394,0.03552281,190.66,190.63,0.03859946]
[1738886720995,0.03552281,190.66,190.64,5.2452]
[1738886721290,23.77405884,190.73,190.63,0.03859946]
[1738886721498,23.77405884,191.0,190.69,23.77405884]
[1738886721499,23.77405884,190.86,190.69,23.77405884]
[1738886721697,4.3756,190.85,190.7,3.1386]
[1738886722092,23.77405884,190.82,190.7,3.1386]
[1738886722603,0.03881219,190.78,190.74,0.03665836]
[1738886725598,0.03881219,190.78,190.77,5.2416]
[1738886725811,0.03881219,190.78,190.74,0.03665836]
[1738886726899,0.03881219,190.78,190.74,5.27905836]
[1738886727202,0.03881219,190.78,190.74,0.03665836]
[1738886727406,0.03881219,190.78,190.77,5.2416]
[1738886729201,4.3756,190.85,190.74,0.03665836]
[1738886729499,4.3756,190.85,190.74,4.32325836]
[1738886729902,4.3756,190.85,190.8,5.2405]
[1738886730302,0.03477145,190.84,190.81,0.03908267]
[1738886730504,0.03477145,190.84,190.81,5.27948267]
[1738886730705,0.03477145,190.84,190.81,0.03908267]
[1738886732905,0.03477145,190.84,190.81,5.27938267]
[1738886734507,0.03477145,190.84,190.81,0.03908267]
[1738886736704,0.03477145,190.84,190.82,5.24]
[1738886736903,0.03477145,190.84,190.81,0.03908267]
[1738886737307,0.03477145,190.84,190.82,5.24]
[1738886737505,0.03477145,190.84,190.81,0.03908267]
[1738886738313,0.03477145,190.84,190.83,5.24]
[1738886739316,3.1289,190.96,190.81,23.81314151]
[1738886739604,3.1289,190.96,190.81,23.77405884]
[1738886739911,5.2371,190.94,190.88,5.2386]
[1738886740211,5.2371,190.94,190.89,5.2383]
[1738886740404,0.03994033,190.93,190.89,5.27843296]
[1738886740909,0.03994033,190.93,190.9,5.2378]
[1738886741113,0.03994033,190.93,190.89,23.8141918]
[1738886741305,3.0209,191.03,190.9,2.9681]
[1738886741513,9.559,191.01,190.94,5.2368]
[1738886742107,4.324,191.01,190.9,2.9681]
[1738886742509,0.03465291,190.97,190.94,0.03784199]
[1738886742717,83.32295429,191.06,190.94,0.03784199]
[1738886742903,5.2347,191.02,190.9,2.9681]
[1738886743104,64.06229545,191.06,190.9,2.9681]
[1738886743316,64.06229545,191.06,190.93,23.77405884]
[1738886743506,5.2339,191.05,190.93,23.77405884]
[1738886743915,280.76339134,191.07,190.97,0.03953969]
[1738886744914,5.2342,191.04,190.98,5.2356]
[1738886745116,280.76339134,191.07,190.97,0.03953969]
[1738886747113,285.99679134,191.07,191.0,5.235]
[1738886747309,280.76339134,191.07,190.93,23.77405884]
[1738886747515,28.09405884,191.1,191.02,0.03900792]
[1738886747811,23.77405884,191.06,190.9,2.9681]
[1738886748018,23.77405884,191.03,190.9,2.9681]
[1738886748214,3.93236249,191.05,190.9,2.9681]
[1738886748215,23.77405884,191.0,190.9,2.9681]
[1738886748413,23.77405884,191.0,190.88,5.2383]
[1738886748613,28.09405884,191.0,190.87,3.2041]
[1738886748812,28.09405884,191.0,190.87,8.4428]
[1738886749017,0.03574175,190.95,190.92,0.03773068]
[1738886753919,0.03574175,190.95,190.93,5.2372]
[1738886754325,0.03574175,190.95,190.92,0.03773068]
[1738886756827,0.03574175,190.95,190.94,5.2369]
[1738886758627,0.03574175,190.95,190.92,0.03773068]
[1738886760729,0.03574175,190.95,190.82,6.2443]
[1738886760730,4.31574175,190.95,190.82,6.2443]
[1738886760933,3.0742,190.94,190.78,23.77405884]
[1738886761829,0.0349058,190.88,190.84,0.03418272]
[1738886762430,0.0349058,190.88,190.85,5.2394]
[1738886763233,0.0349058,190.88,190.84,0.03418272]
[1738886763729,5.2735058,190.88,190.84,0.03418272]
[1738886763937,0.0349058,190.88,190.84,0.03418272]
[1738886764639,0.0349058,190.88,190.85,5.2394]
[1738886765542,0.0349058,190.88,190.87,5.2389]
[1738886765929,4.26,190.98,190.84,0.03418272]
[1738886766133,28.03405884,191.0,190.83,23.77405884]
[1738886766339,4.26,191.0,190.84,4.161]
[1738886767040,0.038715,190.94,190.9,0.03792541]
[1738886767935,0.038715,190.94,190.9,5.27572541]
[1738886768939,0.038715,190.94,190.9,0.03792541]
[1738886769135,0.038715,190.94,190.91,5.2377]
[1738886769737,0.038715,190.94,190.9,0.03792541]
[1738886771739,0.038715,190.94,190.91,5.2375]
[1738886777349,0.038715,190.94,190.9,0.03792541]
[1738886777845,0.038715,190.94,190.93,5.2372]
[1738886780750,51.60763546,191.05,190.93,14.81006414]
[1738886780954,0.18672,191.05,191.03,5.2342]
[1738886782547,5.2344,191.04,191.02,0.03965338]
[1738886782945,0.18672,191.05,191.02,0.03965338]
[1738886784252,21.60992396,191.18,191.09,5.2327]
[1738886784445,21.60992396,191.18,191.05,3.2064]
[1738886784650,21.60992396,191.18,191.07,14.81006414]
[1738886784851,21.60992396,191.18,191.1,0.03835927]
[1738886785757,5.2309,191.16,191.1,5.27085927]
[1738886786252,5.2314,191.15,191.1,0.03835927]
[1738886787657,23.6592209,191.2,191.1,0.03835927]
[1738886787952,0.96169895,191.19,191.1,0.03835927]
[1738886788351,0.96169895,191.19,191.15,5.2311]
[1738886788557,27.9175209,191.23,191.06,23.6592209]
[1738886788853,0.96155965,191.22,191.15,0.03790899]
[1738886789446,4.36,191.22,191.15,0.03790899]
[1738886790252,9.4874,191.23,191.15,0.03790899]
[1738886790553,4.2583,191.23,191.15,0.03790899]
[1738886790855,5.2296,191.21,191.15,0.03790899]
[1738886791256,4.2583,191.23,191.15,0.03790899]
[1738886791857,5.2294,191.22,191.15,5.26880899]
[1738886792157,5.2294,191.22,191.15,0.03790899]
[1738886792359,4.2583,191.23,191.15,0.03790899]
[1738886792857,5.2293,191.22,191.15,5.26910899]
[1738886794656,9.4873,191.23,191.15,0.03790899]
[1738886794859,4.2583,191.23,191.15,0.03790899]
[1738886795859,27.9175209,191.23,191.15,0.03790899]
[1738886796363,5.2297,191.21,191.15,0.03790899]
[1738886796654,27.9175209,191.23,191.15,0.03790899]
[1738886797051,5.2298,191.21,191.15,0.03790899]
[1738886797561,27.9175209,191.23,191.15,0.03790899]
[1738886797758,23.6592209,191.19,191.05,3.2064]
[1738886797965,23.6592209,191.19,191.03,2.9638]
[1738886798160,23.6592209,191.19,191.04,3.0029]
[1738886798864,0.03976971,191.13,191.1,0.03899181]
[1738886800758,5.2305,191.18,191.1,0.03899181]
[1738886801362,5.2305,191.18,191.12,5.2318]
[1738886802767,5.2314,191.15,191.1,0.03899181]
[1738886802966,4.34,191.21,191.1,0.03899181]
[1738886802967,3.0264,191.2,191.1,0.03899181]
[1738886804064,5.2311,191.16,191.1,0.03899181]
[1738886804563,5.2311,191.16,191.1,5.27149181]
[1738886805063,3.0264,191.2,191.1,0.03899181]
[1738886805270,8.5583,191.23,191.15,5.2312]
[1738886805468,4.2583,191.23,191.1,23.6592209]
[1738886805769,4.2583,191.23,191.17,0.03668201]
[1738886806470,3.0254,191.28,191.21,5.2293]
[1738886806672,4.2075,191.29,191.17,0.03668201]
[1738886806976,4.2075,191.29,191.2,0.03695699]
[1738886807264,26.6846209,191.36,191.2,0.03695699]
[1738886807463,5.07085072,191.35,191.22,23.6592209]
[1738886807661,4.11,191.35,191.22,23.6592209]
[1738886807863,4.11,191.35,191.27,0.03991394]
[1738886808271,21.60992396,191.37,191.27,0.03991394]
[1738886809266,21.60992396,191.37,191.28,23.6592209]
[1738886809467,21.60992396,191.37,191.31,23.6592209]
[1738886809669,21.60992396,191.37,191.32,5.2263]
[1738886809867,21.60992396,191.37,191.31,23.6592209]
[1738886810067,21.60992396,191.37,191.33,0.03679286]
[1738886810273,21.60992396,191.37,191.33,5.26299286]
[1738886810469,21.60992396,191.37,191.33,0.03679286]
[1738886810769,57.51829478,191.38,191.34,5.2259]
[1738886811076,4.11,191.44,191.33,0.03679286]
[1738886811366,8.3918,191.42,191.35,5.2256]
[1738886811572,4.11,191.44,191.33,0.03679286]
[1738886812772,5.2244,191.4,191.34,5.226]
[1738886813168,4.11,191.44,191.35,0.04023821]
[1738886813475,21.60992396,191.49,191.35,0.04023821]
[1738886813773,4.4495,191.46,191.29,26.5923209]
[1738886813974,23.6592209,191.42,191.4,8.255e-05]
[1738886814268,23.6592209,191.42,191.29,2.9331]
[1738886814470,5.2263,191.33,191.23,6.1369]
[1738886814772,23.6592209,191.36,191.23,6.1369]
[1738886814969,5.2275,191.29,191.21,9.5053]
[1738886815165,23.6592209,191.33,191.28,0.0376039]
[1738886815367,23.6592209,191.3,191.17,7.25789185]
[1738886816472,23.6592209,191.3,191.13,26.6116209]
[1738886816668,0.03920962,191.25,191.22,0.03623355]
[1738886816872,5.26770962,191.25,191.22,0.03623355]
[1738886817071,0.03920962,191.25,191.13,2.9524]
[1738886817378,23.6592209,191.27,191.13,2.9524]
[1738886817379,3.2128,191.26,191.13,2.9524]
[1738886817568,5.2293,191.22,191.14,5.2315]
[1738886817767,3.2128,191.26,191.13,2.9524]
[1738886818179,5.2286,191.25,191.16,5.2308]
[1738886818378,3.2128,191.26,191.16,5.2308]
[1738886818568,0.04002154,191.21,191.18,0.03700628]
[1738886819177,23.69924244,191.21,191.04,31.0769209]
[1738886819582,5.2309,191.16,191.08,5.233]
[1738886819777,23.6592209,191.21,191.04,31.0769209]
[1738886820177,5.2306,191.17,191.04,31.0769209]
[1738886820380,0.03748415,191.14,191.11,0.03988114]
[1738886821579,0.03748415,191.14,191.04,3.1588]
[1738886821780,0.03748415,191.14,191.05,5.2339]
[1738886822078,0.03748415,191.14,191.03,2.9406]
[1738886822277,0.03748415,191.14,190.94,7.25789185]
[1738886822278,23.6592209,191.05,190.94,7.25789185]
[1738886822778,5.2357,190.99,190.98,0.03856475]
[1738886822975,5.2357,190.99,190.94,7.25789185]
[1738886823176,23.69352337,191.01,190.94,7.25789185]
[1738886823375,0.03430247,191.01,190.94,7.25789185]
[1738886824184,0.03430247,191.01,190.96,0.03778229]
[1738886824978,0.03430247,191.01,190.99,5.2354]
[1738886825980,0.03430247,191.01,190.96,0.03778229]
[1738886826187,5.26940247,191.01,190.96,0.03778229]
[1738886826784,0.03430247,191.01,190.96,0.03778229]
[1738886827689,0.03430247,191.01,190.96,5.27388229]
[1738886827888,0.03430247,191.01,190.96,0.03778229]
[1738886829587,0.03430247,191.01,191.0,5.2353]
[1738886830289,103.58,191.09,191.04,5.2341]
[1738886830788,108.8129,191.09,191.04,5.2341]
[1738886831385,103.58,191.09,190.97,23.6592209]
[1738886831589,0.03803228,191.08,191.05,0.03600776]
[1738886831781,0.03803228,191.08,191.03,23.6592209]
[1738886831982,23.6592209,191.18,191.06,5.2335]
[1738886832182,0.03691893,191.07,191.06,5.2335]
[1738886832393,5.2329,191.09,190.98,2.9779]
[1738886832685,0.03773439,191.08,191.05,5.27164955]
[1738886833087,0.96178517,191.17,191.05,5.27164955]
[1738886833293,0.03595752,191.08,191.05,5.27164955]
[1738886833494,5.232,191.12,191.05,5.2339]
[1738886833695,0.03360171,191.08,191.05,5.26886216]
[1738886833991,23.6592209,191.15,191.05,5.26886216]
[1738886834196,0.03807766,191.08,191.05,5.26886216]
[1738886834396,5.232,191.12,191.05,5.26886216]
[1738886834600,3.193,191.16,191.05,0.03496216]
[1738886834896,0.03391551,191.1,191.05,0.03496216]
[1738886835086,0.03391551,191.1,191.09,5.2328]
[1738886836992,0.03391551,191.1,191.06,0.03866395]
[1738886837390,5.2333,191.08,191.06,0.03866395]
[1738886837587,0.03391551,191.1,191.06,0.03866395]
[1738886838699,5.2331,191.09,191.06,0.03866395]
[1738886838894,0.03391551,191.1,190.97,3.131]
[1738886839099,23.6592209,191.09,190.97,3.131]
[1738886840093,0.03676273,191.05,191.01,5.27403164]
[1738886840493,0.03676273,191.05,191.01,0.03913164]
[1738886841097,0.03676273,191.05,191.03,5.2344]
[1738886841395,0.03676273,191.05,191.01,0.03913164]
[1738886841998,0.03676273,191.05,191.04,5.2342]
[1738886842502,5.27076273,191.05,191.01,0.03913164]
[1738886843098,5.27076273,191.05,191.01,5.27413164]
[1738886843493,5.27076273,191.05,191.04,5.2342]
[1738886843494,0.03676273,191.05,191.04,5.2342]
[1738886844591,6.273e-05,191.05,191.04,5.2342]
[1738886851205,5.2299,191.2,191.02,26.6297209]
[1738886851405,5.2299,191.2,191.09,23.6592209]
[1738886851912,5.2296,191.21,191.16,5.2308]
[1738886852406,0.03784171,191.2,191.17,0.03304514]
[1738886852807,23.6592209,191.16,191.02,2.9705]
[1738886853010,3.1564,191.15,191.02,2.9705]
[1738886853202,5.2326,191.1,191.01,63.31271733]
[1738886853812,0.03380662,191.07,191.06,5.2336]
[1738886855007,0.03380662,191.07,191.04,0.03408735]
[1738886855607,5.2339,191.06,191.04,0.03408735]
[1738886855807,0.03380662,191.07,191.0,5.2353]
[1738886856711,5.2337,191.06,191.0,5.2353]
[1738886856910,5.2337,191.06,191.02,0.03333681]
[1738886857302,5.26720662,191.07,191.02,0.03333681]
[1738886857501,0.03380662,191.07,191.02,0.03333681]
[1738886858813,0.03380662,191.07,191.02,5.26803681]
[1738886861217,0.03380662,191.07,191.05,5.2338]
[1738886861416,0.03380662,191.07,191.02,0.03333681]
[1738886862215,0.03380662,191.07,191.06,5.2336]
[1738886864415,5.231,191.16,191.12,5.232]
[1738886864715,7.4525,191.2,191.05,23.6592209]
[1738886865605,0.03821137,191.14,191.11,0.03792239]
[1738886867911,5.26971137,191.14,191.11,0.03792239]
[1738886868110,0.03821137,191.14,190.98,7.25789185]
[1738886868312,23.6592209,191.15,190.98,10.33489185]
[1738886868518,5.2326,191.1,190.98,10.33489185]
[1738886868716,23.6592209,191.15,190.98,10.33489185]
[1738886869020,5.2312,191.16,191.06,5.2335]
[1738886869221,0.03756261,191.08,191.05,0.0352608]
[1738886869516,23.6592209,191.19,191.01,23.6592209]
[1738886869820,5.231,191.16,191.05,0.03325908]
[1738886870015,0.04025365,191.12,191.02,3.1046]
[1738886870214,0.04025365,191.12,191.07,0.03549246]
[1738886872211,0.04025365,191.12,191.11,5.2323]
[1738886872821,5.365e-05,191.12,191.11,5.2323]
[1738886881927,5.365e-05,191.12,191.07,0.03549246]
[1738886882421,5.365e-05,191.12,191.02,7.25789185]
[1738886882725,23.6592209,191.11,191.02,7.25789185]
[1738886882924,5.365e-05,191.12,191.02,7.25789185]
[1738886883130,5.365e-05,191.12,191.03,23.6592209]
[1738886883723,5.365e-05,191.12,191.06,0.03418173]
[1738886884117,5.365e-05,191.12,191.08,5.233]
[1738886884519,5.365e-05,191.12,191.06,0.03418173]
[1738886885325,5.2323,191.11,191.06,0.03418173]
[1738886885623,5.365e-05,191.12,191.06,0.03418173]
[1738886886726,5.365e-05,191.12,191.06,5.26758173]
[1738886886924,5.365e-05,191.12,191.06,0.03418173]
[1738886887523,5.365e-05,191.12,191.11,5.2323]
[1738886894730,5.365e-05,191.12,191.09,23.6592209]
[1738886894929,5.365e-05,191.12,191.06,0.03418173]
[1738886895131,5.2326,191.1,191.06,0.03418173]
[1738886895331,7.2795,191.11,191.06,0.03418173]
[1738886896132,5.2326,191.1,191.06,0.03418173]
[1738886898133,5.2331,191.08,191.02,5.2345]
[1738886898339,5.2331,191.08,190.91,28.78347333]
[1738886898340,38.46086077,191.07,190.92,6.0746]
[1738886898829,4.18,191.08,190.94,38.46086077]
[1738886899033,45.74036077,191.11,190.94,38.46086077]
[1738886899231,7.2795,191.11,190.94,38.46086077]
[1738886899437,0.03514043,191.03,190.99,0.03906666]
[1738886899637,45.74036077,191.11,190.99,5.2354]
[1738886899839,45.74036077,191.11,190.99,0.0354658]
[1738886899840,0.03959348,191.03,190.99,0.0354658]
[1738886900039,45.74036077,191.11,190.94,38.46086077]
[1738886900340,0.03708894,191.03,190.99,0.03704106]
[1738886900542,38.46086077,191.07,190.92,6.0746]
[1738886900743,0.03913487,191.03,190.99,5.27240046]
[1738886901133,0.03913487,191.03,190.99,0.03690046]
[1738886902950,5.27383487,191.03,190.99,0.03690046]
[1738886903851,5.27383487,191.03,190.96,5.2363]
[1738886904148,38.49999564,191.03,190.89,69.4338481]
[1738886904355,38.49999564,191.03,190.89,6.0776]
[1738886904551,38.46086077,191.03,190.89,6.0776]
[1738886904748,5.2356,190.99,190.89,6.0776]
[1738886904950,0.03959057,190.98,190.94,0.03868013]
[1738886905749,0.03959057,190.98,190.95,5.2366]
[1738886906053,0.03959057,190.98,190.94,0.03868013]
[1738886906843,0.03959057,190.98,190.96,5.2363]
[1738886908251,9.057e-05,190.98,190.97,5.2361]
[1738886911848,9.057e-05,190.98,190.97,43.69696077]
[1738886914655,9.057e-05,190.98,190.97,82.15782154]
[1738886914852,9.057e-05,190.98,190.97,83.10759642]
[1738886915154,9.057e-05,190.98,190.97,44.64673565]
[1738886915354,9.057e-05,190.98,190.97,43.69696077]
[1738886915958,9.057e-05,190.98,190.97,83.10752797]
[1738886916166,9.057e-05,190.98,190.97,44.6466672]
[1738886916365,9.057e-05,190.98,190.97,43.69696077]
[1738886916764,9.057e-05,190.98,190.97,28.88980476]
[1738886930184,9.057e-05,190.98,190.97,5.2361]
[1738886931482,9.057e-05,190.98,190.95,5.2364]
[1738886933083,9.057e-05,190.98,190.94,0.03868013]
[1738886933285,9.057e-05,190.98,190.9,5.2378]
[1738886933487,4.1,191.02,190.9,5.2378]
[1738886933684,5.2364,190.97,190.9,5.2378]
[1738886933887,5.2364,190.97,190.91,5.2377]
[1738886934481,0.03585423,190.96,190.92,0.03616208]
[1738886934685,11.7487,191.03,190.88,23.65370476]
[1738886934881,0.03677358,190.96,190.92,0.03582146]
[1738886935880,0.03677358,190.96,190.94,5.2369]
[1738886936090,0.03677358,190.96,190.92,0.03582146]
[1738886936478,0.03677358,190.96,190.9,5.238]
[1738886937085,0.03677358,190.96,190.85,23.65370476]
[1738886937289,0.03677358,190.96,190.88,23.65370476]
[1738886937482,31.30240476,191.03,190.88,23.65370476]
[1738886937785,0.03408632,190.94,190.9,0.03764335]
[1738886937982,5.2353,191.0,190.88,23.65370476]